Cogmind - Beta 15 @@@ ROGUE MODE // 2025.10.02 @ 17:59:20 Player: f3-rnm Result: Destroyed by Y-72 Warden with Railgun Performance ------------- Evolutions (7) 3500 Regions Visited (23) 4600 Robots Destroyed (287) 1435 Value Destroyed (14869) 14869 Prototype IDs (31) 620 Alien Tech Used (2) 400 Bonus (14083) 14083 TOTAL SCORE: 39507 Bonus ------- Triggered High Security 500 High Alert Combat Kills 5276 Follower Combat Kills 4058 Entered Garrisons 400 Used RIF Installer 1000 Network Hubs Disabled 200 Registered with UFD 300 Met Optimus in HQ 500 Met Zhirov 300 Met R17 at Cetus 500 Met R17 at Research 2000 Friendly Fire -951 Cogmind --------- Core Integrity 0/1300 Matter 127/300 Energy 99/100 System Corruption 26% Temperature Cool (9) Movement Core (50) Location -3/Research Parts ------- > --- POWER (2) -------- (None) > --- PROPULSION (2) --- Antigrav System > --- UTILITY (10) ----- Advanced Hacking Suite Relay Coupler [Proto] (10) Relay Coupler [Proto] (10) > --- WEAPON (7) ------- (None) > --- INVENTORY (5) ---- Large Storage Unit Matter Compressor (74) Medium Regenerative Plating Advanced Remote Datajack Peak State ------------ > --- POWER ------------ Particle Reactor Quantum Reactor > --- PROPULSION ------- Overtuned Huge Scrapsphere > --- UTILITY ---------- Scrap Suit Advanced Heat Sink Advanced Heat Sink Makeshift Microdissipator Network Huge Storage Unit Enhanced Optical Array Medium Regenerative Plating Advanced Force Field Advanced Hacking Suite > --- WEAPON ----------- Quantum Rifle Enhanced Quantum Rifle Enhanced Quantum Rifle Enhanced Quantum Rifle Railgun Railgun Railgun > --- INVENTORY -------- Micro Antimatter Reactor Medium Treads High-capacity Storage Unit Advanced Energy Well Matter Compressor Long-range IFF Parser Experimental Utility Shielding Heavy Armor Plating Centrium Medium Armor Plating Advanced Force Field Advanced Force Field Relay Coupler [Proto] Relay Coupler [Proto] Relay Coupler [Proto] Relay Coupler [Proto] Relay Coupler [Proto] Relay Coupler [Proto] Relay Coupler [Proto] Long-range Tractor Beam Gamma Rifle Plasma Rifle Overtuned Quantum Rifle Heavy Machine Gun Advanced Remote Datajack [Rating: 151] Favorites ----------- Power Reinforced Deuterium Engine Engine Reinforced Deuterium Engine Power Core Light Nuclear Core Reactor Quantum Reactor Propulsion Armored Wheel Treads Light Treads Wheel Armored Wheel Hover Unit Antigrav System Utility Advanced Heat Sink Device Advanced Heat Sink Storage High-capacity Storage Unit Processor Spectral Analyzer Hackware Advanced Hacking Suite Protection Medium Regenerative Plating Weapon Gatling Laser Energy Gun Gatling Laser Energy Cannon EM Pulse Cannon Ballistic Gun Railgun Ballistic Cannon Gauss Cannon Launcher Fusion Bomb Launcher Special Weapon Improved Remote Datajack Piercing Weapon Force Lance Build | -11 -10 -9 -9 -8 -8 -8 -8 -6 -6 -6 -5 -5 -5 -5 -5 -4 -4 -4 -4 -3 -3 -3 -3 ------- Run | Yrd Mat Mat Min Mat Sto Rec Scr Fac Gar Fac Fac Ext Cet Arc Hub Fac Upp Upp Zhi Pro Res Gar Res Slots Evolved 14 | . . 2 . 2 . . . 4 . . 2 . . . . 2 . . . . 2 . . Power 1 | . . . . . . . . 1 . . . . . . . . . . . . . . . Propulsion . | . . . . . . . . . . . . . . . . . . . . . . . . Utility 8 | . . 2 . . . . . 3 . . 1 . . . . 1 . . . . 1 . . Weapon 5 | . . . . 2 . . . . . . 1 . . . . 1 . . . . 1 . . Parts Attached 207 | 6 . . 4 10 24 1 2 6 25 . 3 14 14 2 . 7 6 . 4 5 11 39 24 Power 23 | 1 . . 1 1 1 1 . 1 2 . . 3 1 . . . 1 . 1 . 1 5 3 Engine 6 | 1 . . 1 . . 1 . 1 . . . 1 . . . . . . . . . . 1 Core 5 | . . . . 1 . . . . 1 . . 2 . . . . 1 . . . . . . Reactor 12 | . . . . . 1 . . . 1 . . . 1 . . . . . 1 . 1 5 2 Propulsion 21 | 2 . . 2 . 6 . . 1 6 . . . 2 . . . 1 . . . . . 1 Treads 11 | 2 . . . . 3 . . 1 3 . . . 2 . . . . . . . . . . Leg . | . . . . . . . . . . . . . . . . . . . . . . . . Wheel 9 | . . . 2 . 3 . . . 3 . . . . . . . 1 . . . . . . Hover 1 | . . . . . . . . . . . . . . . . . . . . . . . 1 Flight . | . . . . . . . . . . . . . . . . . . . . . . . . Utility 77 | 1 . . . 4 4 . . 3 8 . 3 4 6 1 . 4 3 . 2 3 4 15 12 Device 44 | . . . . 3 3 . . 1 7 . 2 1 2 1 . 4 1 . 1 2 1 12 3 Storage 3 | 1 . . . 1 . . . . . . . . . . . . . . . . 1 . . Processor 8 | . . . . . . . . 1 . . 1 . 1 . . . 2 . . . 1 2 . Hackware 8 | . . . . . . . . . . . . . . . . . . . . . 1 1 6 Protection 14 | . . . . . 1 . . 1 1 . . 3 3 . . . . . 1 1 . . 3 Artifact . | . . . . . . . . . . . . . . . . . . . . . . . . Weapon 86 | 2 . . 1 5 13 . 2 1 9 . . 7 5 1 . 3 1 . 1 2 6 19 8 Energy Gun 36 | . . . . 3 6 . . 1 4 . . 2 2 . . . 1 . 1 1 . 11 4 Energy Cannon 2 | . . . . . 1 . . . . . . 1 . . . . . . . . . . . Ballistic Gun 40 | 2 . . 1 2 5 . 1 . 4 . . 3 3 1 . 2 . . . 1 6 8 1 Ballistic Cannon 2 | . . . . . . . . . 1 . . . . . . . . . . . . . 1 Launcher 3 | . . . . . 1 . . . . . . 1 . . . . . . . . . . 1 Special Weapon 2 | . . . . . . . 1 . . . . . . . . 1 . . . . . . . Impact Weapon . | . . . . . . . . . . . . . . . . . . . . . . . . Slashing Weapon . | . . . . . . . . . . . . . . . . . . . . . . . . Piercing Weapon 1 | . . . . . . . . . . . . . . . . . . . . . . . 1 Special Melee Weapon . | . . . . . . . . . . . . . . . . . . . . . . . . Unidentified Prototypes 17 | . . . . . 6 . . . . . . . 5 . . . . . 4 . . 1 1 Parts Lost 85 | . . . 5 4 9 1 . . 4 . . 8 3 . . 2 . . . 2 . 20 27 Power 12 | . . . 2 . 1 1 . . . . . 2 . . . . . . . . . 2 4 Propulsion 8 | . . . 2 1 3 . . . . . . . 1 . . . . . . . . . 1 Utility 30 | . . . . . 2 . . . 3 . . 2 2 . . . . . . . . 10 11 Weapon 35 | . . . 1 3 3 . . . 1 . . 4 . . . 2 . . . 2 . 8 11 Highest Loss Streak 12 | . . . 5 3 5 1 . . 1 . . 4 2 . . 1 . . . 2 . 8 12 To Critical Strikes 1 | . . . . . . . . . 1 . . . . . . . . . . . . . . Average Backups 17 | 1 3 7 6 6 17 16 16 15 17 19 17 18 17 17 18 17 18 19 18 17 19 21 21 Power 1 | . 1 1 . . . 1 1 1 . . . . . 1 1 1 1 1 1 1 2 2 . Propulsion 2 | 1 2 2 . 1 2 3 4 4 2 2 2 2 2 2 2 2 . . . . . . . Utility 10 | . . 2 3 2 6 5 5 6 7 13 12 12 11 12 13 12 13 14 14 14 13 14 16 Weapon 4 | . . 2 1 2 6 7 5 3 5 4 3 3 2 2 2 1 2 3 2 . 1 2 2 Tool/Special . | . . . . . . . . . . . . . . . . . . . . . . . . Unused Backups 74 | . . . . 1 8 . 7 . 24 . . . 3 1 . 4 4 . 4 . 1 4 13 Power 8 | . . . . . 1 . 1 . 3 . . . . . . 1 . . . . . 1 1 Propulsion 12 | . . . . . 2 . 1 . 3 . . . 1 1 . 1 2 . . . . 1 . Utility 38 | . . . . 1 2 . 3 . 11 . . . 2 . . 1 2 . 3 . 1 2 10 Weapon 14 | . . . . . 3 . 2 . 7 . . . . . . 1 . . 1 . . . . Tool/Special 2 | . . . . . . . . . . . . . . . . . . . . . . . 2 Average Slot Usage (%) 88 | . 85 66 59 64 93 99 65 88 99 100 99 98 91 94 94 92 89 89 59 85 86 85 78 Engine 3 | . 14 11 5 . . 8 9 10 6 6 5 5 2 . . . . . . . . . 1 Core 2 | . . . . 5 2 . . . 4 6 5 4 5 5 5 5 5 5 5 5 4 . . Reactor 3 | . . . . . 6 . . . 1 . . . 1 5 5 5 5 5 5 5 3 7 6 Treads 2 | . 28 22 9 . 7 . . 4 5 . . . 4 5 5 5 . . . . . . . Wheel 6 | . . . 11 11 8 18 15 6 6 13 11 11 1 . . . 4 5 5 5 4 4 3 Device 25 | . . . . 17 26 27 27 23 31 26 27 23 16 17 17 22 25 26 25 25 22 23 19 Storage 6 | . 14 11 11 9 9 9 9 6 6 6 5 5 5 5 5 5 5 5 5 5 4 4 3 Processor 3 | . . . . . . . . 5 6 6 5 5 6 11 11 10 5 5 5 1 1 1 2 Protection 4 | . . . . . . . . 3 1 6 5 9 14 11 11 7 5 5 4 8 8 5 6 Energy Gun 12 | . . . . 8 15 9 1 11 19 20 17 19 9 5 5 8 14 15 1 19 11 10 9 Ballistic Gun 10 | . 28 22 22 12 14 18 3 13 2 . 5 2 18 23 23 22 15 15 . 7 17 19 12 Ballistic Cannon 1 | . . . . . . . . . 4 6 5 3 . . . . . . . . . . . Peak Build Rating 151 | 6 6 6 6 27 37 30 27 53 83 72 80 84 125 128 127 139 139 124 123 123 135 151 144 Average Rating 80 | 4 6 6 5 13 31 26 17 45 67 72 78 81 109 127 127 136 124 124 81 116 128 132 124 On Entrance 73 | . 6 6 6 5 27 30 27 27 53 72 72 80 78 125 127 127 138 124 124 123 119 133 142 Naked Turns . | . . . . . . . . . . . . . . . . . . . . . . . . Heaviest Build 190 | 11 11 11 11 61 71 70 60 83 101 101 106 122 138 128 128 135 132 122 114 116 168 190 187 Greatest Support 80 | 40 40 40 40 26 40 20 20 10 75 24 24 24 80 80 80 80 80 20 20 20 20 20 20 Greatest Overweight (x) 9 | . . . . 3 3 3 5 8 8 4 4 5 8 1 1 1 6 6 5 5 8 9 9 Average Overweight (x) 4 | . . . . 1 2 2 2 7 6 4 4 4 1 1 1 1 5 6 4 5 6 7 5 Largest Inventory Capacity 25 | 8 8 8 8 20 20 20 20 20 20 20 20 20 20 20 20 20 20 20 20 20 25 25 25 Average Capacity 20 | 6 8 8 8 11 20 20 20 20 20 20 20 20 20 20 20 20 20 20 20 20 21 25 22 Most Carried 25 | 3 7 8 8 15 20 17 20 19 20 20 20 20 20 20 20 20 20 20 20 20 25 25 25 Average Carried 19 | 2 3 7 5 6 17 16 17 16 19 20 18 19 19 19 20 19 19 20 19 18 20 23 21 Final Capacity 25 | 8 8 8 8 20 20 20 20 20 20 20 20 20 20 20 20 20 20 20 20 20 25 25 5 Final Carried 25 | 3 7 8 5 15 16 17 17 19 20 20 20 20 20 20 20 20 20 20 20 18 25 24 4 Class Distribution -------------------- 35% | Scavenger-Tank 23% | Scavenger-Executioner 9% | Commander-Mutant 6% | Scavenger-Gunner 6% | Commander-Gunner 5% | Scavenger-Scrapper 4% | Gunner 3% | Commander-Tank Dominant Class ---------------- Mutant | -10/Materials Mutant | -9/Materials Mutant | -9/Mines Scavenger-Mutant | -8/Materials Gunner | -8/Storage Commander-Gunner | -8/Recycling Commander-Mutant | -8/Scraptown Scavenger-Tank | -6/Factory Scavenger-Tank | -6/Garrison Scavenger-Tank | -6/Factory Scavenger-Tank | -5/Factory Scavenger-Tank | -5/Extension Scavenger-Tank | -5/Cetus Scavenger-Tank | -5/Archives Scavenger-Tank | -5/Hub_04(d) Scavenger-Executioner | -4/Factory Scavenger-Executioner | -4/Upper Caves Scavenger-Executioner | -4/Upper Caves Scavenger-Mutant | -4/Zhirov Scavenger-Scrapper | -3/Proximity Caves Scavenger-Executioner | -3/Research Scavenger-Executioner | -3/Garrison Scavenger-Executioner | -3/Research Resources | -11 -10 -9 -9 -8 -8 -8 -8 -6 -6 -6 -5 -5 -5 -5 -5 -4 -4 -4 -4 -3 -3 -3 -3 ----------- Run | Yrd Mat Mat Min Mat Sto Rec Scr Fac Gar Fac Fac Ext Cet Arc Hub Fac Upp Upp Zhi Pro Res Gar Res Matter Collected 10096 | 259 . 54 117 244 851 168 18 166 1449 . 23 392 406 151 . 807 148 24 . 419 619 2558 1223 Remotely 2529 | . . . . . 280 161 18 166 62 . . . . . . 742 . . . . . 518 582 Salvage Created 14436 | . . 54 25 317 1166 200 . . 2056 . 23 1141 448 306 . 1603 85 113 211 944 543 2921 2280 Parts 627 | . . 4 1 23 47 14 . . 69 . 4 55 24 20 . 61 4 7 6 39 32 120 97 Haulers Intercepted 5 | . . . . 1 3 . . . . . . . . . . 1 . . . . . . . Recyclers Shooed 5 | . . . . . 1 . . . . . . 3 . . . . . . . . . . 1 Parts Field Recycled . | . . . . . . . . . . . . . . . . . . . . . . . . Retrieved Matter . | . . . . . . . . . . . . . . . . . . . . . . . . Parts Self-Destructed 66 | . . . . . . . . . . . . . . . . . 12 7 1 46 . . . Prevented 3 | . . . . . . . . . . . . . . . . . . . 3 . . . . Kills | -11 -10 -9 -9 -8 -8 -8 -8 -6 -6 -6 -5 -5 -5 -5 -5 -4 -4 -4 -4 -3 -3 -3 -3 ------- Run | Yrd Mat Mat Min Mat Sto Rec Scr Fac Gar Fac Fac Ext Cet Arc Hub Fac Upp Upp Zhi Pro Res Gar Res Combat Hostiles Destroyed 226 | . . 1 2 7 25 2 . . 32 . . 23 5 2 . 18 1 2 . 14 9 46 37 Guns 179 | . . 1 2 7 13 2 . . 31 . . 12 5 2 . 18 1 2 . 13 9 45 16 Cannons 1 | . . . . . . . . . 1 . . . . . . . . . . . . . . AOE 37 | . . . . . 11 . . . . . . 10 . . . . . . . . . . 16 Classes Destroyed 23 | . 1 1 2 3 5 . . . 6 . . 1 . . . . . . . 2 . 1 1 Worker 15 | . . . 1 . 1 . . . . . . 5 . . . 1 . . . . 2 . 5 Builder 12 | . . . . . 1 . . . . . 1 4 . . . 4 . . . . . . 2 Tunneler 1 | . . . . . . . . . . . . . . . . . . . . . . . 1 Hauler 5 | . . . . 1 3 . . . . . . . . . . 1 . . . . . . . Recycler 6 | . . . . . 1 2 . . . . . 1 . . . 1 . . . . . . 1 Mechanic 3 | . . . . . . . . . 1 . . . . . . . . . . . . . 2 Operator 8 | . . . . . 2 . . . . . . . . 4 . 1 . . . . . . 1 Drone 2 | . . . . . . . . . . . . . . . . . . . . 2 . . . Watcher 6 | . 1 . . . 1 . . . . . . . 1 . . 1 . . . . 1 1 . Swarmer 40 | . . . . 3 3 . . . 9 . . 7 . . . . . . . . 6 12 . Cutter 4 | . . . . . . . . . . . . . . . . . . . . . . 4 . Saboteur 3 | . . . . . . . . . 1 . . 1 . . . . . . . . . . 1 Grunt 93 | . . . . 3 16 . . . 12 . . 9 . . . 10 . . . 5 1 14 23 Brawler 6 | . . . . . 1 . . . 4 . . . . . . . . . . . . 1 . Duelist 8 | . . . . . . . . . 2 . . . . . . . . . . 1 . 3 2 Sentry 28 | . . 1 . 1 4 2 . . 4 . . 2 . 2 . 2 . . . . 2 8 . Demolisher 2 | . . . 2 . . . . . . . . . . . . . . . . . . . . Hunter 10 | . . . . . 1 . . . 1 . . 2 . . . 2 1 . . 2 . . 1 Programmer 24 | . . . . . . . . . 1 . . 1 . . . 4 . 2 . 3 . 3 10 Behemoth 2 | . . . . . . . . . . . . 1 . . . . . . . . . 1 . Cetus Guard 5 | . . . . . . . . . . . . . 5 . . . . . . . . . . Scrapoid 1 | . . . . . . . . . . . . . . . . . . . . 1 . . . Botcube 1 | . . . . . . . . . 1 . . . . . . . . . . . . . . Decomposer 1 | . . . . . . . . . . . . . . . . . . . . 1 . . . Savage 1 | . . . . . . . . . . . . . 1 . . . . . . . . . . Infiltrator 2 | . . . . . . . . . 2 . . . . . . . . . . . . . . Best Kill Streak 18 | . 1 1 2 3 13 2 . . 5 . 1 11 4 3 . 8 1 2 . 4 6 6 18 Combat Bots Only 12 | . . 1 2 3 9 1 . . 5 . . 8 3 2 . 7 1 2 . 4 5 6 12 Max Kills in Single Turn 3 | . 1 1 1 1 3 1 . . 2 . 1 3 2 1 . 3 1 2 . 1 2 2 3 Gunslinging 1 | . . . . . . . . . 1 . . . . . . . . . . . 1 1 1 Exploded 3 | . . . . . 3 . . . . . . 3 . . . . . . . . . . 3 Melee . | . . . . . . . . . . . . . . . . . . . . . . . . Uniques/NPCs Destroyed . | . . . . . . . . . . . . . . . . . . . . . . . . Combat | -11 -10 -9 -9 -8 -8 -8 -8 -6 -6 -6 -5 -5 -5 -5 -5 -4 -4 -4 -4 -3 -3 -3 -3 -------- Run | Yrd Mat Mat Min Mat Sto Rec Scr Fac Gar Fac Fac Ext Cet Arc Hub Fac Upp Upp Zhi Pro Res Gar Res Hostile Shots Fired 1466 | . . 18 17 54 129 8 . 5 127 . . 125 66 19 19 83 3 5 . 89 46 251 402 Missed 458 | . . 8 2 13 43 3 . 2 46 . . 42 18 6 2 33 2 1 . 25 19 60 133 Hits 1008 | . . 10 15 41 86 5 . 3 81 . . 83 48 13 17 50 1 4 . 64 27 191 269 Melee 33 | . . . . . . . . . 7 . . . . . . . . . . . . 23 3 Projectile 975 | . . 10 15 41 86 5 . 3 74 . . 83 48 13 17 50 1 4 . 64 27 168 266 AOE 21 | . . . 17 . . . . . . . . . . . . . . . . . . 4 . Critical Strikes 67 | . . . . . 3 2 . . 3 . . 4 6 . . 3 . . . 3 . 21 22 Part Disruptions 4 | . . . . . . . . . . . . . . . 1 . . . . . . . 3 Damage Taken 20505 | . . 150 624 506 1434 78 . 55 1124 . . 1418 1265 340 569 1004 196 77 60 1370 720 4024 5491 Core 2255 | . . 17 183 136 134 13 . . 130 . . 33 51 22 63 60 . . 30 151 75 248 909 Absorbed by Shields 2243 | . . . . . . . . . 278 . . 302 . . . . . . . . . 889 774 Ignored by Resistances 63 | . . . . . . . . . . . . 34 29 . . . . . . . . . . Regen/Repaired (Parts) 2468 | . . . . . . . . . . . . . 185 107 2 269 29 39 . 304 243 958 332 Core Remaining (%) 77 | 100 100 . 50 . . . 48 . . 84 . . . . 83 . . . . 79 . . . Volleys Fired 686 | 1 1 10 8 39 74 8 1 2 155 . 1 47 20 16 1 33 4 2 4 35 27 97 100 Largest 7 | 2 2 2 2 3 4 3 1 3 4 . 5 5 4 5 1 6 6 6 1 6 6 7 7 Hottest 514 | 40 40 40 40 85 272 102 . 119 325 . 308 325 171 220 80 300 363 363 60 392 332 514 290 Shots Fired 2365 | 2 2 20 16 78 212 22 1 6 451 . 5 138 66 76 1 180 21 10 4 144 97 503 310 Gun 2260 | 2 2 20 16 78 192 21 . 6 411 . 4 118 66 76 1 180 21 10 4 144 96 503 289 Cannon 53 | . . . . . 3 1 . . 40 . 1 7 . . . . . . . . . . 1 Launcher 50 | . . . . . 17 . . . . . . 13 . . . . . . . . . . 20 Special 2 | . . . . . . . 1 . . . . . . . . . . . . . 1 . . Kinetic 1347 | 2 2 20 16 62 86 14 . 4 189 . 2 13 61 64 . 146 12 6 . 58 59 359 172 Thermal 918 | . . . . 16 106 7 . 2 262 . 3 112 5 12 1 34 9 4 . 86 37 144 78 Explosive 50 | . . . . . 17 . . . . . . 13 . . . . . . . . . . 20 Electromagnetic 48 | . . . . . 3 1 . . . . . . . . . . . . 4 . . . 40 Robot Hit Streak 48 | . . 10 4 7 26 11 12 18 48 . 1 10 16 7 . 10 7 4 5 9 6 16 7 Robot Miss Streak 8 | 2 4 6 3 3 4 1 . . 6 . 1 4 3 5 . 4 4 3 . 4 8 8 6 Penetration Max 2 | . . . . . . . . . 1 . . 1 1 1 . 2 . . . 1 1 2 1 Secondary Targets 57 | . . . . . 2 . . . 7 . . 7 1 . . 6 . . . 6 4 16 8 Max Gunslinging Chain 2 | . . . . . 1 . . . 2 . . 1 1 . . 1 . . . 1 1 2 1 Shots Hit Robots 1326 | . . 15 10 44 121 13 1 6 285 . 1 102 48 41 . 100 8 4 4 82 34 261 146 Core Hits 815 | . 1 3 4 16 61 6 . 4 179 . 1 131 21 18 1 53 4 3 3 33 25 126 122 Critical Kills 19 | . . . . . . . . . . . . 1 1 2 . 8 . . . 1 1 5 . Critical Parts Destroyed 33 | . . . . . . . . . . . . . 2 3 . 15 . 1 . 1 . 11 . Critical Strikes 77 | . . . . . 3 . . . 2 . . 4 4 6 . 24 . 1 . 7 3 23 . Burn 19 | . . . . . 3 . . . . . . 3 . . . . . . . 5 2 6 . Destroy 56 | . . . . . . . . . . . . 1 4 6 . 24 . 1 . 2 1 17 . Blast 2 | . . . . . . . . . 2 . . . . . . . . . . . . . . Melee Attacks 18 | . . . . . . . . . . . . . . . . . . . . . . . 18 Impact . | . . . . . . . . . . . . . . . . . . . . . . . . Slashing . | . . . . . . . . . . . . . . . . . . . . . . . . Piercing 18 | . . . . . . . . . . . . . . . . . . . . . . . 18 Sneak Attacks . | . . . . . . . . . . . . . . . . . . . . . . . . Combat Hostiles . | . . . . . . . . . . . . . . . . . . . . . . . . Follow-up Attacks . | . . . . . . . . . . . . . . . . . . . . . . . . Damage Inflicted 41626 | . 9 152 131 566 3401 227 . 104 5623 . 11 5086 1214 1196 5 3390 189 170 442 2745 993 7681 8291 Guns 32979 | . . 152 131 566 2040 194 . 104 5280 . 11 2435 1214 1196 . 3385 189 170 85 2745 993 7681 4408 Cannons 558 | . . . . . . 22 . . 343 . . 193 . . . . . . . . . . . Explosions 7916 | . . . . . 1361 . . . . . . 2458 . . . . . . 357 . . . 3740 Melee . | . . . . . . . . . . . . . . . . . . . . . . . . Ramming 173 | . 9 . . . . 11 . . . . . . . . 5 5 . . . . . . 143 Kinetic 18381 | . . 152 131 440 751 92 . 66 1688 . . 277 1129 982 . 2701 69 88 . 994 635 5433 2753 Thermal 14690 | . . . . 126 1289 102 . 38 3935 . 11 2351 85 214 . 684 120 82 357 1751 358 2248 939 Explosive 7559 | . . . . . 1361 . . . . . . 2458 . . . . . . . . . . 3740 Electromagnetic 823 | . . . . . . 22 . . . . . . . . . . . . 85 . . . 716 Impact . | . . . . . . . . . . . . . . . . . . . . . . . . Slashing . | . . . . . . . . . . . . . . . . . . . . . . . . Piercing . | . . . . . . . . . . . . . . . . . . . . . . . . Highest Corruption 26 | . . . . . 2 2 2 . 4 4 1 1 1 1 2 1 1 1 1 9 . 3 26 Average Corruption 3 | . . . . . 2 2 2 . 4 4 1 1 1 1 1 1 1 1 1 6 . 2 13 Corruption Purged 1 | . . . . . . . . . . . . . . 1 . . . . . . . . . Corruption Blocked . | . . . . . . . . . . . . . . . . . . . . . . . . Effects 285 | . . . . . 16 12 7 . 137 1 . 8 3 3 . 1 5 2 2 10 . 33 45 Message Errors 70 | . . . . . 3 1 1 . 35 1 . . 1 2 . . 2 1 . 2 . 10 11 Matter Fused 66 | . . . . . 3 7 1 . 37 . . 1 1 . . . . . . 2 . 9 5 Heat Flow Errors 36 | . . . . . 1 3 1 . 17 . . 2 . 1 . . . . 1 . . 3 7 Energy Discharges 33 | . . . . . 1 . 1 . 18 . . 2 . . . . 2 1 . . . 4 4 Parts Rejected 2 | . . . . . . . . . . . . 1 . . . . . . . . . 1 . Parts Fused 4 | . . . . . . . 1 . 1 . . . . . . . . . . 1 . . 1 Data Loss (minor) 32 | . . . . . 3 . 2 . 16 . . . . . . . 1 . 1 2 . 3 4 Data Loss (major) 9 | . . . . . 1 1 . . 4 . . . . . . . . . . 2 . . 1 Misfires 11 | . . . . . . . . . 5 . . 1 1 . . 1 . . . . . 1 2 Alerts 5 | . . . . . . . . . 3 . . 1 . . . . . . . . . . 1 Misdirections 3 | . . . . . . . . . . . . . . . . . . . . . . . 3 Weapon Failures 14 | . . . . . 4 . . . 1 . . . . . . . . . . 1 . 2 6 Overload Shots . | . . . . . . . . . . . . . . . . . . . . . . . . Overflow Damage 307 | . . . . . 32 . . . . . . 1 . . . . . . 161 . . . 113 Projectiles . | . . . . . . . . . . . . . . . . . . . . . . . . Explosions 307 | . . . . . 32 . . . . . . 1 . . . . . . 161 . . . 113 Melee . | . . . . . . . . . . . . . . . . . . . . . . . . Knockbacks 7 | . . . . . . . . . 7 . . . . . . . . . . . . . . Impact . | . . . . . . . . . . . . . . . . . . . . . . . . Kinetic 6 | . . . . . . . . . 6 . . . . . . . . . . . . . . Secondary 1 | . . . . . . . . . 1 . . . . . . . . . . . . . . Self-Inflicted Damage 448 | . . . . . 103 5 . . . . . . . . . . . . 61 . . . 279 Shots 8 | . . . . . 4 . . . . . . . . . . . . . 1 . . . 3 Rammed 6 | . 1 . . . . 1 . . 1 . . . . . 1 1 . . . . . . 1 Targets Rammed 7 | . 2 . . . . 1 . . 1 . . . . . 1 1 . . . . . . 1 Kicked . | . . . . . . . . . . . . . . . . . . . . . . . . Crushed 1 | . 1 . . . . . . . . . . . . . . . . . . . . . . Highest Temperature 431 | . . 6 . . 274 211 264 45 254 . . 341 176 177 . 27 132 132 144 431 314 284 200 Average Temperature 85 | . . 5 . . 77 57 141 22 58 . . 82 62 62 . 9 32 79 108 154 133 81 92 Received Heat Transfer 2802 | . . 45 . 207 648 36 . 27 266 . . 305 63 9 81 138 . . . 96 27 376 478 Effects 6 | . . . . . . . 1 . . . . . . . . . . . . 4 . 1 . Energy Bleed 1 | . . . . . . . 1 . . . . . . . . . . . . . . . . Interference 3 | . . . . . . . . . . . . . . . . . . . . 2 . 1 . Short Circuit 1 | . . . . . . . . . . . . . . . . . . . . 1 . . . Damage (minor) 1 | . . . . . . . . . . . . . . . . . . . . 1 . . . Siege Activations . | . . . . . . . . . . . . . . . . . . . . . . . . Martial Activations . | . . . . . . . . . . . . . . . . . . . . . . . . Shielding Activations . | . . . . . . . . . . . . . . . . . . . . . . . . Robots Disrupted 1 | . . . . . . . . . . . . . . . . . . . . . . . 1 Combat Hostiles 1 | . . . . . . . . . . . . . . . . . . . . . . . 1 Robots Corrupted 5 | . . . . . . . . . . . . . . . . . . . . . . . 5 Combat Hostiles 5 | . . . . . . . . . . . . . . . . . . . . . . . 5 Parts Fried 12 | . . . . . . . . . . . . . . . . . . . . . . . 12 Impact Corruptions . | . . . . . . . . . . . . . . . . . . . . . . . . Robots Melted 4 | . . . . . 1 . . . . . . 1 . . . . . . . 1 . 1 . Combat Hostiles 4 | . . . . . 1 . . . . . . 1 . . . . . . . 1 . 1 . Parts Melted 62 | . . . . . 9 2 . . 7 . . 13 3 2 . 5 1 . . 10 4 6 . Heat Transferred 27886 | . . . . 296 2849 222 . 74 8296 . 25 5520 148 259 . 777 148 87 100 2723 848 4404 1110 Parts Sabotaged . | . . . . . . . . . . . . . . . . . . . . . . . . Parts Stolen . | . . . . . . . . . . . . . . . . . . . . . . . . Parts Stripped . | . . . . . . . . . . . . . . . . . . . . . . . . Power Chain Reactions 1 | . . . . . . . . . . . . . . . . . . . 1 . . . . Alert | -11 -10 -9 -9 -8 -8 -8 -8 -6 -6 -6 -5 -5 -5 -5 -5 -4 -4 -4 -4 -3 -3 -3 -3 ------- Run | Yrd Mat Mat Min Mat Sto Rec Scr Fac Gar Fac Fac Ext Cet Arc Hub Fac Upp Upp Zhi Pro Res Gar Res Maximum Alert Level 5 | . . . . . 2 . . . 5 5 4 5 4 2 . 2 . . . . 1 5 5 Low Security (%) 23 | 100 100 100 100 100 74 100 . 100 4 . . . . 27 100 26 . . . . 43 6 . Level 1 11 | . . . . . 23 . . . 5 . . . . 52 . 26 . . . . 56 4 . Level 2 9 | . . . . . 2 . . . 2 . . 22 . 20 . 47 . . . . . 24 . Level 3 8 | . . . . . . . . . 7 . . 27 67 . . . . . . . . 13 . Level 4 19 | . . . . . . . . . 14 . 100 39 32 . . . . . . . . 24 85 Level 5 28 | . . . . . . . . . 65 100 . 11 . . . . . . . . . 25 12 High Security . | . . . . . . . . . . . . . . . . . . . . . . . 1 Max Security . | . . . . . . . . . . . . . . . . . . . . . . . . Peak Influence 4804 | . 7 30 30 52 408 170 . 77 4804 2522 1220 2000 1148 519 50 490 . . . . 272 2262 2336 Initial 2522 | . . . . 1 . 142 . . . 2522 1220 541 1120 398 37 19 . . . . 195 166 1272 Average 1295 | . . 7 7 15 144 70 . 24 2510 2507 1162 1064 1072 298 17 314 . . . . 197 1143 1409 Influence Increases 14863 | . 7 30 55 178 851 153 . 77 4944 . 5 2113 199 217 52 756 66 60 10 335 515 2396 1844 Destroy 0b10 Robot/C 6480 | . . 20 40 140 500 80 . 60 1240 . . 1160 160 80 . 440 40 40 . 280 200 1080 920 Destroy 0b10 Robot/NC 375 | . 5 . 5 5 45 10 . . 25 . 5 70 10 20 . 45 . . 10 10 30 5 75 Destroy Leader 834 | . 2 10 10 32 118 . . 10 40 . . 172 . . . 104 10 10 . 30 54 60 172 Allied During Kill 1621 | . . . . . . 62 . 7 496 . . 555 29 8 . 49 16 10 . 15 34 195 145 Successful Hack 75 | . . . . . 7 . . . 16 . . 21 . . . 7 . . . . . 10 14 Select Force Hacks 50 | . . . . . . . . . . . . . . . 50 . . . . . . . . Disable Machine 330 | . . . . . 105 . . . 30 . . . . 75 . 45 . . . . 15 . 60 Anti-Garrison Action 3850 | . . . . . . . . . 3000 . . . . . . . . . . . . 850 . Destroy Structure 903 | . . . . 1 76 1 . . 97 . . 120 . 34 2 66 . . . . 32 106 368 Advance Influence 150 | . . . . . . . . . . . . . . . . . . . . . 150 . . Partial Spotted 30 | . . . . . . . . . . . . . . . . . . . . . . 30 . Lose Combat Pursuer 165 | . . . . . . . . . . . . 15 . . . . . . . . . 60 90 Influence Decreases 12547 | . 7 30 50 183 485 519 . 77 140 2312 1392 1218 1204 1103 121 379 446 97 10 268 360 356 1790 Entered New Map 7148 | . . . . 4 . 224 . . . 2282 1272 564 880 597 72 21 156 8 . . 22 56 990 Time Decay 4059 | . 7 30 30 139 395 285 . 77 . 30 120 434 254 506 49 318 270 89 10 228 318 . 470 Lost Part 820 | . . . 20 40 90 10 . . 40 . . 80 30 . . 20 . . . 20 . 200 270 Lost Ally 520 | . . . . . . . . . 100 . . 140 40 . . 20 20 . . 20 20 100 60 Squads Dispatched 43 | . . . . 1 4 . . . . . 2 10 . . 1 6 . . . . 7 . 12 Investigation 7 | . . . . . . . . . . . . 3 . . 1 1 . . . . 1 . 1 Extermination 4 | . . . . . . . . . . . 1 . . . . 1 . . . . . . 2 Reinforcement 20 | . . . . 1 4 . . . . . 1 4 . . . 2 . . . . 6 . 2 Assault 9 | . . . . . . . . . . . . 3 . . . . . . . . . . 6 Garrison 3 | . . . . . . . . . . . . . . . . 2 . . . . . . 1 Intercept . | . . . . . . . . . . . . . . . . . . . . . . . . Searches Triggered . | . . . . . . . . . . . . . . . . . . . . . . . . Construction Impeded 6 | . . . . . 1 . . . . . . 3 . . . 1 . . . . . . 1 Haulers Reinforced 4 | . . . . . . . . . . . . . . . . 1 . . . . 3 . . Active Scanning Responses . | . . . . . . . . . . . . . . . . . . . . . . . . Cargo Convoy Interrupts . | . . . . . . . . . . . . . . . . . . . . . . . . Stealth | -11 -10 -9 -9 -8 -8 -8 -8 -6 -6 -6 -5 -5 -5 -5 -5 -4 -4 -4 -4 -3 -3 -3 -3 --------- Run | Yrd Mat Mat Min Mat Sto Rec Scr Fac Gar Fac Fac Ext Cet Arc Hub Fac Upp Upp Zhi Pro Res Gar Res Distress Signals 13 | . . . . . 3 . . . . . . . 2 . . 2 . . . . 2 . 4 Communications Jammed . | . . . . . . . . . . . . . . . . . . . . . . . . Distress Signals . | . . . . . . . . . . . . . . . . . . . . . . . . Times Spotted 423 | . 4 2 2 13 30 3 . 3 62 . . 71 10 13 10 26 2 2 . 15 24 67 64 Peak Tracking Total 13 | . 2 2 2 5 6 2 . 3 7 . . 13 5 2 11 4 2 2 . 4 5 13 7 Tactical Retreats 6 | . . . . . . . . . . . . 1 . . . . . . . . . 2 3 Traps | -11 -10 -9 -9 -8 -8 -8 -8 -6 -6 -6 -5 -5 -5 -5 -5 -4 -4 -4 -4 -3 -3 -3 -3 ------- Run | Yrd Mat Mat Min Mat Sto Rec Scr Fac Gar Fac Fac Ext Cet Arc Hub Fac Upp Upp Zhi Pro Res Gar Res Traps Triggered 22 | . . . . . 2 . . . 11 . 1 1 . . . . . . . . 1 6 . Indirectly . | . . . . . . . . . . . . . . . . . . . . . . . . Trap Hack Attempts . | . . . . . . . . . . . . . . . . . . . . . . . . Triggered . | . . . . . . . . . . . . . . . . . . . . . . . . Disarmed . | . . . . . . . . . . . . . . . . . . . . . . . . Reprogrammed . | . . . . . . . . . . . . . . . . . . . . . . . . Reused . | . . . . . . . . . . . . . . . . . . . . . . . . Traps Extracted . | . . . . . . . . . . . . . . . . . . . . . . . . Installed . | . . . . . . . . . . . . . . . . . . . . . . . . Triggered . | . . . . . . . . . . . . . . . . . . . . . . . . Machines | -11 -10 -9 -9 -8 -8 -8 -8 -6 -6 -6 -5 -5 -5 -5 -5 -4 -4 -4 -4 -3 -3 -3 -3 ---------- Run | Yrd Mat Mat Min Mat Sto Rec Scr Fac Gar Fac Fac Ext Cet Arc Hub Fac Upp Upp Zhi Pro Res Gar Res Machines Disabled 34 | . . . . . 7 . . . 5 . . 1 . 5 . 3 . . 3 . 1 5 4 Max in Single Turn 3 | . . . . . 1 . . . 2 . . . . 1 . 1 . . 3 . 1 1 1 Garrison Access 2 | . . . . . . . . . . . . . . . . 1 . . . . 1 . . Garrison Relay 4 | . . . . . . . . . 1 . . . . . . . . . . . . 3 . Phase Generator 1 | . . . . . . . . . 1 . . . . . . . . . . . . . . Network Hub 1 | . . . . . . . . . . . . . . . 1 . . . . . . . . Energy Cycler 1 | . . . . . . . . . . . . 1 . . . . . . . . . . . Machines Repaired . | . . . . . . . . . . . . . . . . . . . . . . . . Machines Dismantled . | . . . . . . . . . . . . . . . . . . . . . . . . Machines Sabotaged 1 | . . . . . . . . . . . . . . . 1 . . . . . . . . Overloaded Fab Kills . | . . . . . . . . . . . . . . . . . . . . . . . . Hacking | -11 -10 -9 -9 -8 -8 -8 -8 -6 -6 -6 -5 -5 -5 -5 -5 -4 -4 -4 -4 -3 -3 -3 -3 --------- Run | Yrd Mat Mat Min Mat Sto Rec Scr Fac Gar Fac Fac Ext Cet Arc Hub Fac Upp Upp Zhi Pro Res Gar Res Machines Accessed 28 | . . . . . 1 . . 1 3 . . 7 . . 1 3 . . 4 . 3 2 3 Terminals 17 | . . . . . 1 . . . 3 . . 7 . . 1 1 . . . . . 2 2 Fabricators . | . . . . . . . . . . . . . . . . . . . . . . . . Repair Stations . | . . . . . . . . . . . . . . . . . . . . . . . . Recycling Units 3 | . . . . . . . . . . . . . . . . 1 . . . . 1 . 1 Scanalyzers . | . . . . . . . . . . . . . . . . . . . . . . . . Garrison Access 4 | . . . . . . . . 1 . . . . . . . 1 . . . . 2 . . Total Hacks 62 | . . . . . 1 . . 1 3 . . 14 . . 3 7 . . 17 . 5 5 6 Successful 38 | . . . . . 1 . . 1 2 . . 5 . . 1 5 . . 17 . 3 1 2 Failed 24 | . . . . . . . . . 1 . . 9 . . 2 2 . . . . 2 4 4 Catastrophic 6 | . . . . . . . . . 1 . . 2 . . . 1 . . . . . 2 . Database Lockouts . | . . . . . . . . . . . . . . . . . . . . . . . . Manual 13 | . . . . . 1 . . . . . . . . . 3 2 . . . . 3 1 3 Terminals 32 | . . . . . 1 . . . 3 . . 14 . . 3 3 . . . . . 5 3 Fabricators . | . . . . . . . . . . . . . . . . . . . . . . . . Repair Stations . | . . . . . . . . . . . . . . . . . . . . . . . . Recycling Units 9 | . . . . . . . . . . . . . . . . 3 . . . . 3 . 3 Scanalyzers . | . . . . . . . . . . . . . . . . . . . . . . . . Garrison Access 4 | . . . . . . . . 1 . . . . . . . 1 . . . . 2 . . Terminal Hacks 29 | . . . . . 1 . . . 2 . . 5 . . . 2 . . 17 . . 1 1 Record 5 | . . . . . . . . . . . . . . . . . . . 5 . . . . Part Schematic 4 | . . . . . . . . . . . . . . . . . . . 4 . . . . Robot Analysis 4 | . . . . . . . . . . . . . . . . . . . 4 . . . . Prototype ID Bank 4 | . . . . . . . . . . . . . . . . . . . 4 . . . . Open Door 5 | . . . . . 1 . . . 1 . . 3 . . . . . . . . . . . Branch Access Points 2 | . . . . . . . . . . . . . . . . 1 . . . . . . 1 Emergency Access Points 1 | . . . . . . . . . . . . . . . . . . . . . . 1 . Recycling Unit Index 1 | . . . . . . . . . . . . . . . . 1 . . . . . . . Alert Level 1 | . . . . . . . . . . . . 1 . . . . . . . . . . . Locate Traps 1 | . . . . . . . . . . . . 1 . . . . . . . . . . . Security Stations 1 | . . . . . . . . . 1 . . . . . . . . . . . . . . Fabricator Hacks . | . . . . . . . . . . . . . . . . . . . . . . . . Repair Station Hacks . | . . . . . . . . . . . . . . . . . . . . . . . . Recycling Unit Hacks 1 | . . . . . . . . . . . . . . . . 1 . . . . . . . Retrieve Components 1 | . . . . . . . . . . . . . . . . 1 . . . . . . . Scanalyzer . | . . . . . . . . . . . . . . . . . . . . . . . . Garrison Access Hacks 4 | . . . . . . . . 1 . . . . . . . 1 . . . . 2 . . Unlock Access 3 | . . . . . . . . 1 . . . . . . . . . . . . 2 . . Seal Access 1 | . . . . . . . . . . . . . . . . 1 . . . . . . . Unauthorized Hacks 4 | . . . . . . . . . . . . . . . 1 1 . . . . 1 . 1 Terminals 1 | . . . . . . . . . . . . . . . 1 . . . . . . . . Sabotage 1 | . . . . . . . . . . . . . . . 1 . . . . . . . . Fabricators . | . . . . . . . . . . . . . . . . . . . . . . . . Repair Stations . | . . . . . . . . . . . . . . . . . . . . . . . . Recycling Units 3 | . . . . . . . . . . . . . . . . 1 . . . . 1 . 1 Scrapoids 3 | . . . . . . . . . . . . . . . . 1 . . . . 1 . 1 Scanalyzers . | . . . . . . . . . . . . . . . . . . . . . . . . Garrison Access . | . . . . . . . . . . . . . . . . . . . . . . . . Data Cores Recovered 2 | . . . . . . . . . . . . . . . . 1 . . . . . . 1 Used 1 | . . . . . . . . . . . . . . . . . . . . . . . 1 Hacking Detections 13 | . . . . . . . . . 2 . . 5 . . 1 1 . . . . . 2 2 Full Trace Events 2 | . . . . . . . . . . . . 2 . . . . . . . . . . . Feedback Events . | . . . . . . . . . . . . . . . . . . . . . . . . Feedback Blocked . | . . . . . . . . . . . . . . . . . . . . . . . . Robot Schematics Acquired . | . . . . . . . . . . . . . . . . . . . . . . . . Robots Built . | . . . . . . . . . . . . . . . . . . . . . . . . Authchips . | . . . . . . . . . . . . . . . . . . . . . . . . Time . | . . . . . . . . . . . . . . . . . . . . . . . . Total Robot Build Rating . | . . . . . . . . . . . . . . . . . . . . . . . . Part Schematics Acquired 4 | . . . . . . . . . . . . . . . . . . . 4 . . . . Parts Built . | . . . . . . . . . . . . . . . . . . . . . . . . Authchips . | . . . . . . . . . . . . . . . . . . . . . . . . Time . | . . . . . . . . . . . . . . . . . . . . . . . . Total Part Build Rating . | . . . . . . . . . . . . . . . . . . . . . . . . Parts Repaired . | . . . . . . . . . . . . . . . . . . . . . . . . Time . | . . . . . . . . . . . . . . . . . . . . . . . . Parts Recycled . | . . . . . . . . . . . . . . . . . . . . . . . . Recycled Matter . | . . . . . . . . . . . . . . . . . . . . . . . . Retrieved Matter . | . . . . . . . . . . . . . . . . . . . . . . . . Retrieved Components 10 | . . . . . . . . . . . . . . . . 10 . . . . . . . Parts Scanalyzed . | . . . . . . . . . . . . . . . . . . . . . . . . Part Schematics Acquired . | . . . . . . . . . . . . . . . . . . . . . . . . Parts Damaged . | . . . . . . . . . . . . . . . . . . . . . . . . Bothacking | -11 -10 -9 -9 -8 -8 -8 -8 -6 -6 -6 -5 -5 -5 -5 -5 -4 -4 -4 -4 -3 -3 -3 -3 ------------ Run | Yrd Mat Mat Min Mat Sto Rec Scr Fac Gar Fac Fac Ext Cet Arc Hub Fac Upp Upp Zhi Pro Res Gar Res Used RIF Installer 2 | . . . . . . . . . 1 . . . . . . . . . . . . 1 . Signal Jammer 1 | . . . . . . . . . . . . . . . . . . . . . . 1 . Robots Hacked 1 | . . . . . . . . . . . . . . . . . . . . . 1 . . Non-combat 1 | . . . . . . . . . . . . . . . . . . . . . 1 . . Combat . | . . . . . . . . . . . . . . . . . . . . . . . . Robot Hacks Applied 1 | . . . . . . . . . . . . . . . . . . . . . 1 . . find_recycling 1 | . . . . . . . . . . . . . . . . . . . . . 1 . . Relay Couplers Released 19 | . . . . . . . . . 3 . . . . . . . . . . . 2 14 . Machine Destruction 19 | . . . . . . . . . 3 . . . . . . . . . . . 2 14 . Attached 7 | . . . . . . . . . . . . . . . . . . . . . . 1 6 Fabnet Peak Effective % . | . . . . . . . . . . . . . . . . . . . . . . . . Robots Rewired 29 | . . . . . . . . . 16 . . 4 . . . . . . . . . 9 . Allies Hacked 1 | . . . . . . . . . 1 . . . . . . . . . . . . . . Hacks Repelled . | . . . . . . . . . . . . . . . . . . . . . . . . Allies | -11 -10 -9 -9 -8 -8 -8 -8 -6 -6 -6 -5 -5 -5 -5 -5 -4 -4 -4 -4 -3 -3 -3 -3 -------- Run | Yrd Mat Mat Min Mat Sto Rec Scr Fac Gar Fac Fac Ext Cet Arc Hub Fac Upp Upp Zhi Pro Res Gar Res Total Allies 68 | . . . . . 10 . 1 . 21 . . 12 . . . 5 . . . . 5 9 5 Largest Group 14 | . . . . . 10 10 11 1 14 1 1 7 4 1 1 5 4 2 2 2 5 9 5 Highest-Rated Group 464 | . . . . . 173 173 231 58 464 83 83 369 154 83 83 238 188 94 94 94 323 384 323 Highest-Rated Ally 159 | . . . . . 29 29 58 58 83 83 83 159 83 83 83 83 47 47 47 47 67 64 67 Total Orders 12 | . . . . . . . 3 . 2 . . . . . . . . . 1 . . 6 . STAY 9 | . . . . . . . 3 . 1 . . . . . . . . . 1 . . 4 . FOLLOW 3 | . . . . . . . . . 1 . . . . . . . . . . . . 2 . Ally Attacks 576 | . . . . . . 16 . 6 127 . . 176 31 9 2 34 26 1 . 18 19 33 78 Total Damage 14131 | . . . . . . 201 . 158 3631 . . 4139 849 234 54 772 431 36 . 321 606 977 1722 Kills 121 | . . . . . . 2 . 3 31 . . 41 4 2 . 4 3 . . 2 6 9 14 Allies Corrupted 1 | . . . . . . . . . . . . . . . . 1 . . . . . . . Allies Melted . | . . . . . . . . . . . . . . . . . . . . . . . . Intel | -11 -10 -9 -9 -8 -8 -8 -8 -6 -6 -6 -5 -5 -5 -5 -5 -4 -4 -4 -4 -3 -3 -3 -3 ------- Run | Yrd Mat Mat Min Mat Sto Rec Scr Fac Gar Fac Fac Ext Cet Arc Hub Fac Upp Upp Zhi Pro Res Gar Res Active Infowar (turns) 12940 | . . . . . . . . 212 6135 78 259 1065 555 1375 154 718 597 283 249 124 . 490 646 Optics 11717 | . . . . . . . . 212 6135 78 259 1065 555 1375 154 718 30 . . . . 490 646 Sensors 1286 | . . . . . . . . . . . . . . . . 33 597 283 249 124 . . . Machine Analysis 2431 | . . . . . . . . . . . . . 156 1375 154 718 28 . . . . . . Robot Analysis Total 4 | . . . . . . . . . . . . . . . . . . . 4 . . . . Derelict Logs Recovered 2 | . . . 1 . . . . . . . . . . . . . 1 . . . . . . Drone Launches . | . . . . . . . . . . . . . . . . . . . . . . . . Drone Recoveries . | . . . . . . . . . . . . . . . . . . . . . . . . Exploration | -11 -10 -9 -9 -8 -8 -8 -8 -6 -6 -6 -5 -5 -5 -5 -5 -4 -4 -4 -4 -3 -3 -3 -3 ------------- Run | Yrd Mat Mat Min Mat Sto Rec Scr Fac Gar Fac Fac Ext Cet Arc Hub Fac Upp Upp Zhi Pro Res Gar Res Turns Passed 22522 | 95 194 157 114 344 1130 839 2632 240 6135 78 259 1065 555 1375 154 718 597 283 254 530 718 2834 1222 Spaces Moved 11915 | 52 116 81 79 155 504 634 2184 119 2779 53 164 558 195 110 63 236 417 213 195 357 482 1495 674 Core 212 | 2 . . . . . . . . . . . . . . . . . . . . . . 210 Treads 1224 | 50 116 81 22 . 154 . . . 205 . . . 171 110 63 236 16 . . . . . . Legs . | . . . . . . . . . . . . . . . . . . . . . . . . Wheels 10479 | . . . 57 155 350 634 2184 119 2574 53 164 558 24 . . . 401 213 195 357 482 1495 464 Hover . | . . . . . . . . . . . . . . . . . . . . . . . . Flight . | . . . . . . . . . . . . . . . . . . . . . . . . Fastest Speed 50 | 50 160 160 90 90 115 110 110 155 150 150 150 135 150 240 240 240 120 130 100 120 120 130 50 Average Speed 152 | 155 160 160 109 120 165 124 118 186 191 150 150 151 232 240 240 240 134 130 110 120 130 149 118 Slowest Speed 240 | 160 160 160 160 145 240 125 155 200 240 150 150 165 240 240 240 240 240 130 120 120 150 160 160 Overloaded Moves . | . . . . . . . . . . . . . . . . . . . . . . . . Propulsion Burnouts . | . . . . . . . . . . . . . . . . . . . . . . . . Robots Hopped . | . . . . . . . . . . . . . . . . . . . . . . . . Potential Cave-ins 16 | . . . . . . . . . . . . . . . . . . . . . 4 . 12 Cave-ins Triggered 1 | . . . . . . . . . . . . . . . . . . . . . . . 1 Teleports 1 | . . . . . . . . . . . . . . . . . . . . . . 1 . Exploration Rate (%) 42 | 5 27 10 26 14 74 99 82 4 98 3 6 65 60 87 12 5 61 41 62 62 16 84 20 Regions Visited 23 Branch Regions 12 Pre-discovered Areas 3 | . . . . . . . . . . . . . . . . . . . 3 . . . . Known Exits Taken 7 | . . . . . . . . 1 . . 1 . . . . 1 1 1 1 . 1 . . Unknown Exits Taken 14 | 1 1 1 1 1 1 1 1 . . 1 . 1 1 1 1 . . . . 1 . . . Scrap Searched 10 | . . . . . . . 3 . . . . . . . . . 3 1 . 3 . . . Spaces Dug 32 | . . . . . . . . . 1 . . . . . 1 . 3 . . . 6 1 20 Terrain Destroyed 747 | . . . . . 88 . . . 94 . . 65 1 35 1 35 11 3 . 56 21 70 267 Melee 17 | . . . . . . . . . . . . . . . . . . . . . . . 17 Projectile 246 | . . . . . . . . . 1 . . 2 1 35 1 35 11 3 . 56 20 70 11 AOE 481 | . . . . . 88 . . . 93 . . 63 . . . . . . . . . . 237 Terrain Rammed 4 | . . . . . . . . . . . . . . . . . . . . . . . 4 Walls Destroyed 2 | . . . . . . . . . . . . . . . . . . . . . . . 2 Machines Disabled . | . . . . . . . . . . . . . . . . . . . . . . . . Actions | -11 -10 -9 -9 -8 -8 -8 -8 -6 -6 -6 -5 -5 -5 -5 -5 -4 -4 -4 -4 -3 -3 -3 -3 --------- Run | Yrd Mat Mat Min Mat Sto Rec Scr Fac Gar Fac Fac Ext Cet Arc Hub Fac Upp Upp Zhi Pro Res Gar Res Total 14930 | 61 122 91 91 239 693 667 2241 132 3322 52 174 669 257 1179 64 294 448 214 233 405 538 1877 867 Wait 1290 | . . . . 22 51 23 24 . 50 . . 9 . 1045 . 5 . . . 4 . 45 12 Move 11893 | 51 115 80 78 154 503 633 2183 119 2778 52 163 557 194 109 62 235 416 212 194 356 482 1494 673 Hop . | . . . . . . . . . . . . . . . . . . . . . . . . Pick Up 188 | 3 4 1 1 13 20 1 13 4 43 . 2 6 8 2 . 6 6 . 5 . 7 30 13 Fast Attach 112 | 6 . . . 7 5 1 . 4 5 . 3 4 9 3 . 2 6 . 13 1 8 26 9 Attach 79 | . . . 4 2 10 . 4 2 7 . 2 6 2 . . 4 1 . . 1 1 17 16 Detach 1 | . . . . . . . . . . . . . . . . . 1 . . . . . . Swap 85 | . . . . 1 15 . . 1 22 . . 8 5 . . 3 . . . 3 4 18 5 Drop 203 | . . . . 1 15 . 16 . 48 . 3 4 19 4 . 5 13 . 17 2 9 32 15 Fire 686 | 1 1 10 8 39 74 8 1 2 155 . 1 47 20 16 1 33 4 2 4 35 27 97 100 Melee 18 | . . . . . . . . . . . . . . . . . . . . . . . 18 Ram 6 | . . . . . . 1 . . . . . . . . . . . . . . . . 5 Kick . | . . . . . . . . . . . . . . . . . . . . . . . . Crush 5 | . 2 . . . . . . . 1 . . . . . 1 1 . . . . . . . Escape Stasis 102 | . . . . . . . . . 65 . . . . . . . . . . . . 36 1 Rewire 261 | . . . . . . . . . 148 . . 28 . . . . . . . 3 . 82 . Trap . | . . . . . . . . . . . . . . . . . . . . . . . . Miscellaneous 1 | . . . . . . . . . . . . . . . . . 1 . . . . . . Route ------- -11/Scrapyard -10/Materials -9/Materials -9/Mines -8/Materials -8/Storage -8/Recycling (discovered 2 exits: *Fac / [*Scr]) -8/Scraptown -6/Factory (discovered 2 exits: Low / Gar) -6/Garrison (discovered 3 exits: [*Fac x3]) -6/Factory -5/Factory -5/Extension (discovered 3 exits: *Fac x2 / *Cet) -5/Cetus (discovered 2 exits: *Fac / [*Arc]) -5/Archives (discovered 3 exits: *Fac / *Hub x2) -5/Hub_04(d) -4/Factory (discovered 3 exits: *Upp x2 / Arm) -4/Upper Caves -4/Upper Caves -4/Zhirov -3/Proximity Caves -3/Research (discovered 4 exits: *Res / *Qua / Gar / Gar) -3/Garrison (discovered 3 exits: *Res x3) -3/Research (discovered 2 exits: *Qua x2) History --------- Turn | Location | Event 33 | -11/Scrapyard | Discovered new exit (range 15) 96 | -11/Scrapyard | Entered Materials 205 | -10/Materials | Discovered new exit (range 14) 290 | -10/Materials | Entered another Materials area 290 | -9/Materials | Evolved 2 slots: Utility x2 306 | -9/Materials | Build established: Mutant 438 | -9/Materials | Discovered new exit (range 6) 447 | -9/Materials | Entered Mines 456 | -9/Mines | Assembled infested the area 523 | -9/Mines | Discovered new exit (range 14) 533 | -9/Mines | Lost 5 parts (2p2n1w) 561 | -9/Mines | Entered Materials 561 | -8/Materials | Evolved 2 slots: Weapon x2 692 | -8/Materials | Lost 3 parts (1n2w) 755 | -8/Materials | Discovered new exit (range 14) 905 | -8/Materials | Entered Storage 1174 | -8/Storage | Build established: Scavenger-Gunner 1477 | -8/Storage | Build established: Gunner 1774 | -8/Storage | Lost 5 parts (1n2u2w) 1777 | -8/Storage | Destroyed 9 combat bots 1954 | -8/Storage | Assisted by bots powering up and referring to "LRC-V3" 2020 | -8/Storage | Used back door to open Recycling access 2020 | -8/Storage | Discovered new exit (range 3) 2035 | -8/Storage | Entered Recycling 2035 | -8/Recycling | Accompanied by 10 allies 2097 | -8/Recycling | Core integrity fell below 50% 2247 | -8/Recycling | Build established: Commander-Gunner 2270 | -8/Recycling | Discovered new exit (range 9) 2818 | -8/Recycling | Scanned before Scraplab entrance 2837 | -8/Recycling | Entered Scraplab 2847 | -8/Recycling | Discovered new exit (range 3) 2874 | -8/Recycling | Entered Scraptown 2874 | -8/Scraptown | Accompanied by 10 allies 3032 | -8/Scraptown | Visited UFD Registry 3041 | -8/Scraptown | Registered with UFD as "Shadowunit" 3063 | -8/Scraptown | Visited A0-MCA Data Center 3083 | -8/Scraptown | Visited LU-1G1's Boring Crew 3100 | -8/Scraptown | Visited Scrap Suit Storage 3114 | -8/Scraptown | Visited Junk Repository 3130 | -8/Scraptown | Visited Derelict Rescue Squad 3145 | -8/Scraptown | Visited Infowarlord's Domain 3155 | -8/Scraptown | Visited Research Penetration Think Tank 3176 | -8/Scraptown | Visited Botcube Research 3182 | -8/Scraptown | Build established: Commander-Mutant 3196 | -8/Scraptown | Visited Curators Association 3219 | -8/Scraptown | Visited Chapter 10 3529 | -8/Scraptown | Found Botcube 3601 | -8/Scraptown | Found DRS Beacon 3707 | -8/Scraptown | Discovered new exit (range 3) 3713 | -8/Scraptown | System corruption cleaned by C-Scrubber 3891 | -8/Scraptown | Found Scrap Suit 4010 | -8/Scraptown | Given a C rating by A0-MCA 4012 | -8/Scraptown | Found A0-MCA's Component Scanner 4115 | -8/Scraptown | Visited Cyclists 4146 | -8/Scraptown | Visited Fellowship of the Rings 4862 | -8/Scraptown | Found Spectral Analyzer 5021 | -8/Scraptown | Botcube activated 5041 | -8/Scraptown | Botcube completed mutation into wheeled form, armed with 2 guns. 5232 | -8/Scraptown | Found Scrap Suit 5376 | -8/Scraptown | Build established: Commander-Gunner 5416 | -8/Scraptown | Met Optimus 5416 | -8/Scraptown | Accepted into 0bPrime 5506 | -8/Scraptown | Entered Factory 5506 | -6/Factory | Accompanied by 1 ally 5506 | -6/Factory | Evolved 4 slots: Power x1, Utility x3 5507 | -6/Factory | Identified exit to Lower Caves 5746 | -6/Factory | Identified exit to Garrison 5746 | -6/Factory | Entered Garrison 5746 | -6/Garrison | Accompanied by 1 ally 5782 | -6/Garrison | Triggered checkpoint 5898 | -6/Garrison | Build established: Scavenger-Tank 5986 | -6/Garrison | Rescued a captive Derelict 5987 | -6/Garrison | Rescued a captive Derelict 6006 | -6/Garrison | Triggered checkpoint 6368 | -6/Garrison | Triggered checkpoint 6374 | -6/Garrison | Triggered checkpoint 6380 | -6/Garrison | Build established: Scavenger-Gunner 6394 | -6/Garrison | Triggered checkpoint 6702 | -6/Garrison | Triggered checkpoint 6729 | -6/Garrison | Discovered new exit (range 18) 7082 | -6/Garrison | Triggered checkpoint 7096 | -6/Garrison | Triggered checkpoint 7126 | -6/Garrison | Triggered checkpoint 7578 | -6/Garrison | Build established: Scavenger-Tank 7621 | -6/Garrison | Discovered new exit (range 13) 7680 | -6/Garrison | Triggered checkpoint 7706 | -6/Garrison | Triggered checkpoint 7752 | -6/Garrison | Learned Factory security intel 8132 | -6/Garrison | Triggered checkpoint 8184 | -6/Garrison | Installed Relay Interface Framework 8262 | -6/Garrison | Discovered new exit (range 11) 8476 | -6/Garrison | Triggered checkpoint 8544 | -6/Garrison | Found embedded Infiltrators 8610 | -6/Garrison | Garrison Relay disabled 8779 | -6/Garrison | Phase Generator disabled 10271 | -6/Garrison | Murdered *scrapoid-- 10271 | -6/Garrison | Destroyed *scrapoid-- 10281 | -6/Garrison | Found Botcube 10789 | -6/Garrison | Found Relay Coupler [Proto] 10793 | -6/Garrison | Found Relay Coupler [Proto] 10797 | -6/Garrison | Found Relay Coupler [Proto] 10801 | -6/Garrison | Found Relay Coupler [Proto] 11513 | -6/Garrison | Botcube activated 11533 | -6/Garrison | Botcube completed mutation into treaded form, armed with 2 guns. 11809 | -6/Garrison | Build established: Commander-Tank 11881 | -6/Garrison | Entered Factory 11881 | -6/Factory | Accompanied by 1 ally 11896 | -6/Factory | Discovered new exit (range 17) 11959 | -6/Factory | Entered another Factory area 11959 | -5/Factory | Accompanied by 1 ally 11959 | -5/Factory | Evolved 2 slots: Utility x1, Weapon x1 12091 | -5/Factory | Discovered new exit (range 19) 12156 | -5/Factory | Identified exit to Extension 12213 | -5/Factory | Build established: Scavenger-Tank 12218 | -5/Factory | Entered Extension 12218 | -5/Extension | Accompanied by 1 ally 12274 | -5/Extension | Rescued A7 12412 | -5/Extension | Rescued a captive Derelict 12444 | -5/Extension | Rescued a captive Derelict 12445 | -5/Extension | Rescued a captive Derelict 12479 | -5/Extension | Energy Cycler disabled 12479 | -5/Extension | Rescued a captive Derelict 12479 | -5/Extension | Rescued a captive Derelict 12482 | -5/Extension | Rescued a captive Derelict 12486 | -5/Extension | Rescued a captive Derelict 12487 | -5/Extension | Rescued a captive Derelict 12506 | -5/Extension | Lost 3 allies 12518 | -5/Extension | First assault squad dispatched 12987 | -5/Extension | Spotted B-75 Beast 12999 | -5/Extension | Spotted B-75 Beast 13000 | -5/Extension | Allies destroyed B-75 Beast 13021 | -5/Extension | Discovered new exit (range 15) 13036 | -5/Extension | Found Prototype Protection 13046 | -5/Extension | Destroyed B-75 Beast 13051 | -5/Extension | Extracted ID and sensor layout for unrecognized location from A7's data core 13075 | -5/Extension | Lost 4 parts (1p1u2w) 13118 | -5/Extension | Disrupted transfer network 13188 | -5/Extension | Destroyed 8 combat bots 13239 | -5/Extension | Discovered new exit (range 24) 13241 | -5/Extension | Discovered new exit (range 23) 13283 | -5/Extension | Entered Cetus 13283 | -5/Cetus | Accompanied by 4 allies 13297 | -5/Cetus | Spotted Cetus Guard 13297 | -5/Cetus | Spotted Cetus Guard 13304 | -5/Cetus | Spotted Cetus Guard 13307 | -5/Cetus | Spotted Cetus Guard 13317 | -5/Cetus | Destroyed Cetus Guard 13322 | -5/Cetus | Allies destroyed Cetus Guard 13336 | -5/Cetus | Destroyed Cetus Guard 13347 | -5/Cetus | Allies destroyed Cetus Guard 13389 | -5/Cetus | Identified Med. Regenerative Plating 13522 | -5/Cetus | Discovered new exit (range 24) 13572 | -5/Cetus | Spotted Cetus Guard 13572 | -5/Cetus | Spotted Cetus Guard 13579 | -5/Cetus | Discovered new exit (range 24) 13583 | -5/Cetus | Spotted Cetus Guard 13584 | -5/Cetus | Destroyed Cetus Guard 13586 | -5/Cetus | Spotted Cetus Guard 13604 | -5/Cetus | Destroyed Cetus Guard 13607 | -5/Cetus | Destroyed Cetus Guard 13617 | -5/Cetus | Allies destroyed Cetus Guard 13646 | -5/Cetus | Met Revision 17 13838 | -5/Cetus | Entered Archives 13838 | -5/Archives | Accompanied by 1 ally 13890 | -5/Archives | Discovered new exit (range 22) 13927 | -5/Archives | Discovered new exit (range 24) 13956 | -5/Archives | Discovered new exit (range 23) 15213 | -5/Archives | Entered Hub_04(d) 15213 | -5/Hub_04(d) | Accompanied by 1 ally 15290 | -5/Hub_04(d) | Discovered new exit (range 24) 15347 | -5/Hub_04(d) | Network Hub disabled 15357 | -5/Hub_04(d) | Spotted Lightning 15358 | -5/Hub_04(d) | Spotted Lightning 15359 | -5/Hub_04(d) | Spotted Lightning 15359 | -5/Hub_04(d) | Spotted Lightning 15359 | -5/Hub_04(d) | Spotted Lightning 15367 | -5/Hub_04(d) | Entered Factory 15367 | -4/Factory | Accompanied by 1 ally 15367 | -4/Factory | Evolved 2 slots: Utility x1, Weapon x1 15508 | -4/Factory | Identified exit to Upper Caves 15508 | -4/Factory | Identified exit to Armory 15583 | -4/Factory | Garrison activated, responded to threat 15611 | -4/Factory | Destroyed 7 combat bots 15670 | -4/Factory | Build established: Scavenger-Executioner 15974 | -4/Factory | Scrapoids reinforcements arrived? 16085 | -4/Factory | Entered Upper Caves 16085 | -4/Upper Caves | Accompanied by 5 allies 16125 | -4/Upper Caves | Found Scrap Suit 16126 | -4/Upper Caves | Lost 3 allies 16165 | -4/Upper Caves | Activated DRS Beacon 16167 | -4/Upper Caves | Found Scrap Suit 16193 | -4/Upper Caves | Learned Research garrison access intel 16470 | -4/Upper Caves | Encountered a Warlord checkpoint 16646 | -4/Upper Caves | Discovered new exit (range 4) 16651 | -4/Upper Caves | Identified exit to Upper Caves 16682 | -4/Upper Caves | Entered another Upper Caves area 16682 | -4/Upper Caves | Accompanied by 2 allies 16945 | -4/Upper Caves | Discovered new exit (range 10) 16955 | -4/Upper Caves | Identified exit to Zhirov 16965 | -4/Upper Caves | Entered Zhirov 16965 | -4/Zhirov | Accompanied by 2 allies 16969 | -4/Zhirov | Discovered new exit (range 3) 16988 | -4/Zhirov | Met Zhirov 17023 | -4/Zhirov | Learned location of Quarantine (-3) 17023 | -4/Zhirov | Learned location of Testing (-2) 17023 | -4/Zhirov | Learned location of Command (-1) 17030 | -4/Zhirov | Zhirov requested help retrieving the SGEMP Prototype 17047 | -4/Zhirov | Found Alien Artifact 17047 | -4/Zhirov | Identified Integrated Reactor 17047 | -4/Zhirov | Installed Integrated Reactor, increased core energy generation (+10) 17154 | -4/Zhirov | Found Alien Artifact 17218 | -4/Zhirov | Identified exit to Proximity Caves 17219 | -4/Zhirov | Entered Proximity Caves 17219 | -3/Proximity Caves | Accompanied by 2 allies 17222 | -3/Proximity Caves | Spotter reported a threat 17305 | -3/Proximity Caves | Found Scrap Suit 17335 | -3/Proximity Caves | P-80 Master assimilated allied 04F04-D 17586 | -3/Proximity Caves | Ambushed by research squad 17599 | -3/Proximity Caves | Build established: Scavenger-Scrapper 17743 | -3/Proximity Caves | Discovered new exit (range 6) 17749 | -3/Proximity Caves | Entered Research 17749 | -3/Research | Evolved 2 slots: Utility x1, Weapon x1 17750 | -3/Research | Loaded intel: 4 garrison access locations 17853 | -3/Research | Discovered new exit (range 4) 17887 | -3/Research | Identified exit to Research 17949 | -3/Research | Revision forces began assault on 0b10 17958 | -3/Research | Identified exit to Garrison 17973 | -3/Research | Met up with Revision 17++ 18278 | -3/Research | Scrapoid reinforcements arrived 18346 | -3/Research | Lost 14 allies 18391 | -3/Research | Build established: Scavenger-Executioner 18440 | -3/Research | Discovered new exit (range 9) 18449 | -3/Research | Research terminal network offline 18467 | -3/Research | Identified exit to Garrison 18467 | -3/Research | Entered Garrison 18467 | -3/Garrison | Accompanied by 3 allies 18490 | -3/Garrison | Expanded RIF knowledge: Signal Jamming 18549 | -3/Garrison | Triggered checkpoint 18663 | -3/Garrison | Triggered checkpoint 18757 | -3/Garrison | Spotted B-86 Titan 18765 | -3/Garrison | Triggered checkpoint 18778 | -3/Garrison | Triggered checkpoint 18796 | -3/Garrison | Lost 3 allies 18800 | -3/Garrison | Identified Transdimensional Reconstructor 18800 | -3/Garrison | Warped through subspace 18822 | -3/Garrison | Discovered new exit (range 13) 18831 | -3/Garrison | Lost 8 parts (2p3u3w) 19271 | -3/Garrison | Triggered checkpoint 19449 | -3/Garrison | Destroyed B-86 Titan 19506 | -3/Garrison | Lost 3 parts (2u1w) 19519 | -3/Garrison | Triggered checkpoint 19831 | -3/Garrison | Triggered checkpoint 19859 | -3/Garrison | Garrison Relay disabled 19869 | -3/Garrison | Triggered checkpoint 19947 | -3/Garrison | Garrison Relay disabled 19994 | -3/Garrison | Discovered new exit (range 15) 19997 | -3/Garrison | Triggered checkpoint 20559 | -3/Garrison | Triggered checkpoint 20687 | -3/Garrison | Discovered new exit (range 12) 20699 | -3/Garrison | Triggered checkpoint 20820 | -3/Garrison | Found Relay Coupler [Proto] 20823 | -3/Garrison | Found Relay Coupler [Proto] 20825 | -3/Garrison | Found Relay Coupler [Proto] 20828 | -3/Garrison | Found Relay Coupler [Proto] 20952 | -3/Garrison | Spotted B-86 Titan 21149 | -3/Garrison | Found Scrap Suit 21301 | -3/Garrison | Entered Research 21542 | -3/Research | Spotted B-86 Titan 21551 | -3/Research | First assault squad dispatched 21748 | -3/Research | Identified exit to Quarantine 21829 | -3/Research | System corruption reached 10% 21852 | -3/Research | Core integrity fell below 50% 21874 | -3/Research | Lost 5 parts (1p1u3w) 21923 | -3/Research | Destroyed 9 combat bots 22134 | -3/Research | Found Fusion Bomb Launcher 22266 | -3/Research | Crushed by falling debris 22347 | -3/Research | Garrison activated, responded to threat 22389 | -3/Research | Core integrity fell below 20% 22415 | -3/Research | Destroyed 12 combat bots 22442 | -3/Research | Lost 12 parts (1p1n7u3w) 22449 | -3/Research | Scrapoids reinforcements arrived? 22499 | -3/Research | High security lockdown imminent 22523 | -3/Research | Destroyed by Y-72 Warden with Railgun Last Messages --------------- 22489_ R-10 Processor collects Flexi-carbon Leg. 22489_ R-10 Processor collects Lgt. Antimatter Reactor. 22491_ K-01 Serf collects debris. 22492_ R-10 Processor collects Plasma Rifle. 22492_ R-10 Processor collects Adv. Heat Sink. 22494_ K-01 Serf collects debris. 22496_ System corrupted: Heat flow error (+177). 22498_ Slug penetrates G-67 Veteran. 22498_ Destroyed Lgt. Antimatter Reactor. 22498_ K-01 Serf collects debris. 22499_ Slug penetrates G-67 Veteran. 22499_ G-67 Veteran destroyed. 22499_ ALERT: High security lockdown imminent, T-100. 22505_ 03R13-D suffers critical hit (Burn). 22506_ Slug penetrates G-67 Veteran. 22510_ Slug penetrates 03R15-D. 22510_ 03R15-D destroyed. 22511_ BY3H,T7,GD1CG0DEMAYD YZF3COBMSQJPQX1W 22514_ 03R13-D destroyed. 22523_ Penetrated by Slug. Map ----- +----------------------------------------------------+ | | | | | | | | | | | | | | | | | | | | | | | | | | | | | | | ?????????????????????????????????????????????????? | | ??????????????????????????????????????############ | | ??????????????????????????????????????# """""" | | ??????????????????????????????????????# ""S""" | | ??????????????????????????????????????# """ | | ??????????????????????????????????????# | | ??????????????????????????????????????# | | ??????????????????????????????????????# | | ??????????????????????????????????????# | | ?????????????????### ! ################ """""" | | ????????????Rk T >RRY@ k g/ """"" | | ?????????????????### !################% % """ | | ??????????????????????????????????????# %[%!%= | | ????????????????????????????????????? " *!!%!* | | ?????????????????????????????????##########=#+#### | | ?????????????????????????????????# # !!=#?# | | ?????????????????????????????????# #! # | | ?????????????????????????????????# ! #% # | | ?????????????????????????????????# +!* " | | ?????????????????????????????????# * # # | | ?????????????????????????????????# # # | | ?????????????????????????????????# ! # #?# | | ?????????????????????????????????# # = #?? | | ?????????????????????????????????# " *% #?? | | ?????????????????????????????????#####+###" ! #?? | | ?????????????????????????????????????# #??# #?? | | ?????????????????????????????????????# #??# #?? | | ?????????????????????????????????????# #??" ! %#?? | | ???????????????????????????????????### ###"*% =### | | ????????????????????????????######## | | ????????????????????????????# | | ????????????????????????????# ] | | ????????????????????????????# ^ | | ????????????????????????????# """ """ | | ????????????????????????????# """ """ | +----------------------------------------------------+ Best States ------------- Heat Dissipation 156 Coolant Potential 65 Energy Generation 53 Energy Capacity 590 Matter Stores 300 Matter Capacity 300 Sight Range 24 Robot Scan Range 16 Terrain Scan Density 10 Armor Coverage 675 Resistance: TH 15 Weapon Cycling 15 Evasion (%) 50 Target Analysis 8 Armor Integrity Analysis 40 Recoil Reduction 2 Offensive Hacking 14 Relay Coupler Types 1 Relay Coupler Value 40 Item Schematics ----------------- Assault Drone Bay | -4/Zhirov | Free Exp. Optical Array | -4/Zhirov | Free Exp. Heat Sink | -4/Zhirov | Free Imp. Arc Thrower | -4/Zhirov | Free Robot Schematics ------------------ None Fabricated ------------ Nothing Repaired ---------- Nothing Alien Tech Used ----------------- Integrated Reactor Transdimensional Reconstructor Achievements -------------- Executioner Challenges ------------ None Game ------ Seed CarbideStasisMediator Manual? 0 Play Time 02:36:59 Cumulative 374.0 hours Start 2025.10.01 @ 16:55:19 End 2025.10.02 @ 17:59:20 Sessions 3 Manual Loads 0 Difficulty Rogue Special Mode None Game No. 348 Rogue 312 Adventurer 36 Explorer 0 Win Type - Total 14 Types 6/0/8/0/0/0/0/0/0/0 Lore% 71 Gallery% 85 Achievement% 75 Wizard Run 0 Options --------- Layout 0 ASCII 0 Keyboard 0 Movement Mouse Keybinds 0 Fullscreen 1 Font 18/SmallcapsGlow Map View 76x50 Zoom Use 0% Tactical HUD 1 Map Filters NONE Filters SHIFT_HUE(315) Steam 1 RUN: 164688d1-46e8-442a-be63-bc5ff20d9c9d